Cogmind - Beta 14 @@@ ROGUE MODE // 2024.11.09 @ 13:31:37 Player: K0T Result: Smashed by cave-in Performance ------------- Evolutions (0) 0 Regions Visited (1) 200 Robots Destroyed (5) 25 Value Destroyed (111) 111 Prototype IDs (0) 0 Alien Tech Used (0) 0 Bonus (0) 0 TOTAL SCORE: 336 Bonus ------- None Cogmind --------- Core Integrity 0/250 Matter 59/300 Energy 100/100 System Corruption 11% Temperature Cool (0) Movement Core (200) Ox3 Location -10/Materials Parts ------- > --- POWER (1) -------- (None) > --- PROPULSION (2) --- (None) > --- UTILITY (2) ------ Medium Storage Unit > --- WEAPON (2) ------- Light Assault Rifle > --- INVENTORY (10) --- Light Nuclear Core Light Treads Light Treads Heat Sink Targeting Computer Medium Laser Small Laser Peak State ------------ > --- POWER ------------ Light Ion Engine > --- PROPULSION ------- Aluminum Leg Aluminum Leg > --- UTILITY ---------- Small Storage Unit Sensor Array > --- WEAPON ----------- Medium Laser Light Assault Rifle > --- INVENTORY -------- Ion Engine Light Nuclear Core Light Treads Light Treads Aluminum Leg Medium Storage Unit Small Laser Light Assault Rifle [Rating: 8] Favorites ----------- Power Light Ion Engine Engine Light Ion Engine Propulsion Aluminum Leg Leg Aluminum Leg Flight Unit Flight Unit Utility Sensor Array Device Sensor Array Storage Medium Storage Unit Weapon Medium Laser Energy Gun Medium Laser Ballistic Gun Assault Rifle Slashing Weapon Mining Claw Build | -11 -10 ------- Run | Yrd Mat Slots Evolved . | . . Power . | . . Propulsion . | . . Utility . | . . Weapon . | . . Parts Attached 22 | 6 16 Power 3 | 1 2 Engine 3 | 1 2 Core . | . . Reactor . | . . Propulsion 6 | 2 4 Treads . | . . Leg 4 | 2 2 Wheel . | . . Hover . | . . Flight 2 | . 2 Utility 5 | 1 4 Device 3 | . 3 Storage 2 | 1 1 Processor . | . . Hackware . | . . Protection . | . . Artifact . | . . Weapon 8 | 2 6 Energy Gun 2 | 1 1 Energy Cannon . | . . Ballistic Gun 5 | 1 4 Ballistic Cannon . | . . Launcher . | . . Special Weapon . | . . Impact Weapon . | . . Slashing Weapon 1 | . 1 Piercing Weapon . | . . Special Melee Weapon . | . . Unidentified Prototypes . | . . Parts Lost 6 | . 6 Power 1 | . 1 Propulsion 2 | . 2 Utility 1 | . 1 Weapon 2 | . 2 Highest Loss Streak 4 | . 4 To Critical Strikes . | . . Average Slot Usage (%) 90 | . 90 Engine 13 | . 13 Leg 25 | . 25 Device 10 | . 10 Storage 14 | . 14 Energy Gun 12 | . 12 Ballistic Gun 10 | . 10 Peak Build Rating 8 | 6 8 Average Rating 6 | 3 7 On Entrance 3 | . 6 Naked Turns . | . . Heaviest Build 20 | 11 20 Greatest Support 20 | 20 20 Greatest Overweight (x) 5 | 2 5 Average Overweight (x) . | . . Largest Inventory Capacity 10 | 8 10 Average Capacity 9 | 7 9 Most Carried 10 | 6 10 Average Carried 7 | 3 8 Final Capacity 10 | 8 10 Final Carried 7 | 4 7 Class Distribution -------------------- 100% | Mutant Dominant Class ---------------- Mutant | -10/Materials Resources | -11 -10 ----------- Run | Yrd Mat Matter Collected 274 | 177 97 Remotely . | . . Salvage Created 140 | . 140 Parts 8 | . 8 Haulers Intercepted . | . . Recyclers Shooed 1 | . 1 Parts Field Recycled . | . . Retrieved Matter . | . . Parts Self-Destructed . | . . Prevented . | . . Kills | -11 -10 ------- Run | Yrd Mat Combat Hostiles Destroyed 5 | . 5 Guns 5 | . 5 Classes Destroyed 2 | . 2 Swarmer 3 | . 3 Grunt 2 | . 2 Best Kill Streak 3 | . 3 Combat Bots Only 3 | . 3 Max Kills in Single Turn 1 | . 1 Gunslinging . | . . Exploded . | . . Melee . | . . Uniques/NPCs Destroyed . | . . Combat | -11 -10 -------- Run | Yrd Mat Hostile Shots Fired 35 | . 35 Missed 9 | . 9 Damage Taken 960 | . 960 Core 256 | . 256 Absorbed by Shields . | . . Core Remaining (%) 100 | 100 . Volleys Fired 49 | . 49 Largest 2 | . 2 Hottest 70 | . 70 Shots Fired 73 | . 73 Gun 73 | . 73 Cannon . | . . Launcher . | . . Special . | . . Kinetic 50 | . 50 Thermal 23 | . 23 Explosive . | . . Electromagnetic . | . . Robot Hit Streak 11 | . 11 Robot Miss Streak 5 | . 5 Penetration Max . | . . Secondary Targets 2 | . 2 Max Gunslinging Chain 1 | . 1 Shots Hit Robots 25 | . 25 Core Hits 8 | . 8 Critical Kills 1 | . 1 Critical Parts Destroyed . | . . Critical Strikes 4 | . 4 Burn 3 | . 3 Destroy 1 | . 1 Melee Attacks 18 | . 18 Impact . | . . Slashing 18 | . 18 Piercing . | . . Sneak Attacks . | . . Combat Hostiles . | . . Follow-up Attacks . | . . Damage Inflicted 278 | . 278 Guns 278 | . 278 Cannons . | . . Explosions . | . . Melee . | . . Ramming . | . . Kinetic 130 | . 130 Thermal 148 | . 148 Explosive . | . . Electromagnetic . | . . Impact . | . . Slashing . | . . Piercing . | . . Highest Corruption 11 | . 11 Average Corruption 2 | . 2 Corruption Purged . | . . Corruption Blocked . | . . Effects 11 | . 11 Matter Fused 5 | . 5 Heat Flow Errors 2 | . 2 Energy Discharges 1 | . 1 Data Loss (minor) 2 | . 2 Misfires 1 | . 1 Overload Shots . | . . Overflow Damage . | . . Projectiles . | . . Explosions . | . . Melee . | . . Knockbacks . | . . Impact . | . . Kinetic . | . . Secondary . | . . Self-Inflicted Damage . | . . Shots . | . . Rammed . | . . Targets Rammed . | . . Kicked . | . . Crushed . | . . Highest Temperature 287 | . 287 Average Temperature 103 | . 103 Received Heat Transfer 87 | . 87 Siege Activations . | . . Robots Corrupted . | . . Combat Hostiles . | . . Parts Fried . | . . Impact Corruptions . | . . Robots Melted . | . . Combat Hostiles . | . . Parts Melted 2 | . 2 Heat Transferred 666 | . 666 Parts Sabotaged . | . . Parts Stolen . | . . Parts Stripped . | . . Power Chain Reactions . | . . Alert | -11 -10 ------- Run | Yrd Mat Peak Influence 115 | . 115 Initial . | . . Average 42 | . 45 Maximum Alert Level . | . . Low Security (%) 100 | 100 100 Level 1 . | . . Level 2 . | . . Level 3 . | . . Level 4 . | . . Level 5 . | . . High Security . | . . Max Security . | . . Squads Dispatched . | . . Investigation . | . . Extermination . | . . Reinforcement . | . . Assault . | . . Garrison . | . . Intercept . | . . Searches Triggered . | . . Construction Impeded . | . . Haulers Reinforced . | . . Active Scanning Responses . | . . Cargo Convoy Interrupts . | . . Stealth | -11 -10 --------- Run | Yrd Mat Distress Signals 2 | . 2 Communications Jammed . | . . Distress Signals . | . . Times Spotted 13 | . 13 Peak Tracking Total 5 | . 5 Tactical Retreats 2 | . 2 Traps | -11 -10 ------- Run | Yrd Mat Traps Triggered 3 | . 3 Indirectly . | . . Trap Hack Attempts . | . . Triggered . | . . Disarmed . | . . Reprogrammed . | . . Reused . | . . Traps Extracted . | . . Installed . | . . Triggered . | . . Machines | -11 -10 ---------- Run | Yrd Mat Machines Disabled . | . . Max in Single Turn . | . . Machines Repaired . | . . Machines Dismantled . | . . Machines Sabotaged . | . . Overloaded Fab Kills . | . . Hacking | -11 -10 --------- Run | Yrd Mat Machines Accessed 2 | . 2 Terminals 2 | . 2 Fabricators . | . . Repair Stations . | . . Recycling Units . | . . Scanalyzers . | . . Garrison Access . | . . Total Hacks 6 | . 6 Successful 4 | . 4 Failed 2 | . 2 Catastrophic 1 | . 1 Database Lockouts . | . . Manual 5 | . 5 Terminals 6 | . 6 Fabricators . | . . Repair Stations . | . . Recycling Units . | . . Scanalyzers . | . . Garrison Access . | . . Terminal Hacks 1 | . 1 Zone Layout 1 | . 1 Fabricator Hacks . | . . Repair Station Hacks . | . . Recycling Unit Hacks . | . . Scanalyzer . | . . Garrison Access Hacks . | . . Unauthorized Hacks 3 | . 3 Terminals 3 | . 3 Botnet 2 | . 2 Operators 1 | . 1 Fabricators . | . . Repair Stations . | . . Recycling Units . | . . Scanalyzers . | . . Garrison Access . | . . Data Cores Recovered . | . . Used . | . . Hacking Detections 2 | . 2 Full Trace Events . | . . Feedback Events . | . . Feedback Blocked . | . . Robot Schematics Acquired . | . . Robots Built . | . . Authchips . | . . Time . | . . Total Robot Build Rating . | . . Part Schematics Acquired . | . . Parts Built . | . . Authchips . | . . Time . | . . Total Part Build Rating . | . . Parts Repaired . | . . Time . | . . Parts Recycled . | . . Recycled Matter . | . . Retrieved Matter . | . . Retrieved Components . | . . Parts Scanalyzed . | . . Part Schematics Acquired . | . . Parts Damaged . | . . Bothacking | -11 -10 ------------ Run | Yrd Mat Used RIF Installer . | . . Robots Hacked . | . . Non-combat . | . . Combat . | . . Robot Hacks Applied . | . . Relay Couplers Released . | . . Fabnet Peak Effective % . | . . Robots Rewired . | . . Allies Hacked . | . . Hacks Repelled . | . . Allies | -11 -10 -------- Run | Yrd Mat Total Allies . | . . Largest Group . | . . Highest-Rated Group . | . . Highest-Rated Ally . | . . Total Orders . | . . Ally Attacks . | . . Total Damage . | . . Kills . | . . Allies Corrupted . | . . Allies Melted . | . . Intel | -11 -10 ------- Run | Yrd Mat Robot Analysis Total . | . . Derelict Logs Recovered . | . . Drone Launches . | . . Drone Recoveries . | . . Exploration | -11 -10 ------------- Run | Yrd Mat Turns Passed 1074 | 65 1009 Spaces Moved 488 | 49 439 Core 28 | 23 5 Treads . | . . Legs 460 | 26 434 Wheels . | . . Hover . | . . Flight . | . . Fastest Speed 50 | 50 120 Average Speed 119 | 101 121 Slowest Speed 300 | 150 300 Overloaded Moves . | . . Propulsion Burnouts . | . . Robots Hopped . | . . Cave-ins Triggered 10 | . 10 Exploration Rate (%) 34 | 4 64 Regions Visited 1 Branch Regions . Pre-discovered Areas . | . . Known Exits Taken . | . . Unknown Exits Taken 1 | 1 . Scrap Searched . | . . Spaces Dug 3 | . 3 Terrain Destroyed 3 | . 3 Melee 3 | . 3 Projectile . | . . AOE . | . . Terrain Rammed . | . . Walls Destroyed . | . . Machines Disabled . | . . Actions | -11 -10 --------- Run | Yrd Mat Total 876 | 64 812 Wait 267 | . 267 Move 487 | 48 439 Hop . | . . Pick Up 24 | 10 14 Fast Attach 4 | . 4 Attach 14 | 6 8 Detach 2 | . 2 Swap 4 | . 4 Drop 7 | . 7 Fire 49 | . 49 Melee 18 | . 18 Ram . | . . Kick . | . . Crush . | . . Escape Stasis . | . . Rewire . | . . Trap . | . . Miscellaneous . | . . Route ------- -11/Scrapyard -10/Materials (discovered 3 exits: [*Mat x2] / [*Min]) History --------- Turn | Location | Event 5 | -11/Scrapyard | Discovered new exit (range 14) 66 | -11/Scrapyard | Entered Materials 204 | -10/Materials | Discovered new exit (range 15) 300 | -10/Materials | Build established: Mutant 477 | -10/Materials | Discovered new exit (range 14) 585 | -10/Materials | Discovered new exit (range 14) 874 | -10/Materials | Crushed by falling debris 1033 | -10/Materials | Crushed by falling debris 1051 | -10/Materials | Crushed by falling debris 1051 | -10/Materials | System corruption reached 10% 1052 | -10/Materials | Crushed by falling debris 1052 | -10/Materials | Core integrity fell below 50% 1060 | -10/Materials | Crushed by falling debris 1061 | -10/Materials | Crushed by falling debris 1066 | -10/Materials | Crushed by falling debris 1067 | -10/Materials | Crushed by falling debris 1067 | -10/Materials | Core integrity fell below 20% 1075 | -10/Materials | Crushed by falling debris 1076 | -10/Materials | Crushed by falling debris 1076 | -10/Materials | Smashed by cave-in Last Messages --------------- 01052_ The unstable cave ceiling collapses. 01052_ Crushed by falling debris. 01060_ The unstable cave ceiling collapses. 01060_ Crushed by falling debris. 01061_ The unstable cave ceiling collapses. 01061_ Crushed by falling debris. 01061_ Flight Unit destroyed. 01061_ System corrupted by crushing effect (+1). 01064_ System corrupted: FCS attempts to trigger Lgt. Assault Rifle. 01064_ System corrupted: Lgt. Assault Rifle misfires. 01066_ The unstable cave ceiling collapses. 01066_ Crushed by falling debris. 01067_ The unstable cave ceiling collapses. 01067_ Crushed by falling debris. 01075_ The unstable cave ceiling collapses. 01075_ Crushed by falling debris. 01076_ The unstable cave ceiling collapses. 01076_ Crushed by falling debris. Map ----- +----------------------------------------------------+ | | | | | | | | | | | | | | | | | | | | | | | | | | | | | | | | | | | | | | | | | | | | | | | ???????????????????????????????????????? | | ???????????########?????###????????????? | | ???????????# #?????#@##???????????? | | ???????????# #?????#####??????????? | | ???????????# #??????##"######?????? | | ???????????# """ #???????## #?????? | | ???????????# """ #????????# #?????? | | ???????????# """ #????????# ####?????? | | ???????????# * ######???# #????????? | | ???????????# """ # ##### ########## | | ???????????# R" + # ! # | | ???????????# """ # # """ # | | ???????????# # ##### # """ # | | ???????????################# # """ # | | ?????????????????# + + # | | ?????????????????# # # """ # | | ?????????????????# """ # # """ # | | ?????????????????#""""" # # """ # | | ?????????????????#""""" # # # | | ?????????????????#""""" # ########## | | ?????????????????# """ # ########?? | | ?????????????????# # # #?? | | ?????????????????########### # """#?? | | ????????????????????????# # # """#?? | | ?????????????????????????# + + """#?? | | ?????????????????????????# # # #?? | | ??????????????????########## # #?? | +----------------------------------------------------+ Best States ------------- Heat Dissipation 25 Energy Generation 10 Energy Capacity 250 Matter Stores 288 Matter Capacity 300 Sight Range 16 Robot Scan Range 14 Terrain Scan Density 10 Evasion (%) 55 Item Schematics ----------------- None Robot Schematics ------------------ None Fabricated ------------ Nothing Alien Tech Used ----------------- None Achievements -------------- None Challenges ------------ None Game ------ Seed DeuteriumThermalCompactor Manual? 0 Play Time 00:13:39 Cumulative 137.0 hours Start 2024.11.09 @ 13:11:37 End 2024.11.09 @ 13:31:37 Sessions 1 Manual Loads 0 Difficulty Rogue Special Mode None Game No. 60 Rogue 47 Adventurer 13 Explorer 0 Win Type - Total 1 Types 1/0/0/0/0/0/0/0/0 Lore% 35 Gallery% 42 Achievement% 39 Wizard Run 0 Options --------- Layout 1 ASCII 0 Keyboard 0 Movement Mouse Keybinds 0 Fullscreen 1 Font 24/Smallcaps Map View 50x35 Zoom Use 0% Tactical HUD 1 Map Filters NONE Filters NONE Steam 0 RUN: 271ede37-d0fa-49d0-a063-397c91af5fd3